fUST/lending_fUST_20240824
["ID","MTS","AMOUNT","RATE_DAILY","PERIOD"]
[335755574,1724478647576,-153.0,0.00013776,2]
[335755575,1724478647587,-153.0,0.00013776,2]
[335755576,1724478647597,-153.0,0.00013776,2]
[335755577,1724478647607,-153.0,0.00013776,2]
[335755578,1724478647619,-153.0,0.00013776,2]
[335755579,1724478647630,-153.0,0.00013776,2]
[335755580,1724478647640,-153.0,0.00013776,2]
[335755581,1724478647652,-153.0,0.00013776,2]
[335755582,1724478647663,-153.0,0.00013776,2]
[335755583,1724478647673,-153.0,0.00013776,2]
[335755584,1724478647683,-153.0,0.00013776,2]
[335755585,1724478647692,-153.0,0.00013776,2]
[335755586,1724478647702,-153.0,0.00013776,2]
[335755587,1724478647711,-153.0,0.00013776,2]
[335755588,1724478647721,-153.0,0.00013776,2]
[335755589,1724478647730,-153.0,0.00013776,2]
[335755590,1724478647739,-153.0,0.00013776,2]
[335755591,1724478647749,-153.0,0.00013776,2]
[335755592,1724478647758,-153.0,0.00013776,2]
[335755593,1724478647768,-153.0,0.00013776,2]
[335755594,1724478647778,-153.0,0.00013776,2]
[335755595,1724478647787,-153.0,0.00013776,2]
[335755596,1724478647796,-153.0,0.0001378,2]
[335755597,1724478647806,-153.0,0.0001378,2]
[335755598,1724478647816,-153.0,0.0001378,2]
[335755599,1724478647827,-153.0,0.0001378,2]
[335755600,1724478647837,-153.0,0.0001378,2]
[335755601,1724478647846,-153.0,0.0001378,2]
[335755602,1724478647856,-153.0,0.0001378,2]
[335755603,1724478647865,-153.0,0.0001378,2]
[335755604,1724478647879,-153.0,0.0001378,2]
[335755605,1724478647888,-153.0,0.0001378,2]
[335755606,1724478647898,-153.0,0.0001378,2]
[335755607,1724478647907,-153.0,0.0001378,2]
[335755608,1724478647918,-153.0,0.0001378,2]
[335755609,1724478647927,-153.0,0.0001378,2]
[335755610,1724478647936,-153.0,0.0001378,2]
[335755611,1724478647946,-153.0,0.0001378,2]
[335755612,1724478647956,-153.0,0.0001378,2]
[335755613,1724478647966,-153.0,0.0001378,2]
[335755614,1724478647975,-153.0,0.0001378,2]
[335755615,1724478647985,-153.0,0.0001378,2]
[335755616,1724478647994,-153.0,0.0001378,2]
[335755617,1724478648004,-153.0,0.0001378,2]
[335755618,1724478648013,-150.112233,0.000138,2]
[335755619,1724478648023,-150.112233,0.000138,2]
[335755620,1724478648032,-150.112233,0.000138,2]
[335755621,1724478648042,-150.112233,0.000138,2]
[335755622,1724478648051,-150.0,0.00013873,2]
[335755623,1724478648061,-155.0,0.0001388,2]
[335755624,1724478648071,-150.112233,0.000139,2]
[335755625,1724478648081,-150.112233,0.000139,2]
[335755626,1724478648090,-150.112233,0.000139,2]
[335755627,1724478648100,-150.112233,0.000139,2]
[335755628,1724478648110,-150.112233,0.000139,2]
[335755629,1724478648119,-150.112233,0.000139,2]
[335755630,1724478648131,-409.212231,0.000139,2]
[335755631,1724478648141,-409.212231,0.000139,2]
[335755632,1724478648151,-409.212231,0.000139,2]
[335755633,1724478648161,-359.2462001,0.000139,2]
[335755634,1724478648171,-150.112233,0.000139,2]
[335755635,1724478648180,-150.112233,0.000139,2]
[335755636,1724478648189,-150.112233,0.000139,2]
[335755637,1724478648200,-5720.57521366,0.00013928,2]
[335755638,1724478648209,-243.2101,0.0001393,2]
[335755639,1724478648218,-150.361,0.00013955,2]
[335755640,1724478648228,-522.0,0.00013955,2]
[335755641,1724478648238,-1416.0,0.00013955,2]
[335755642,1724478648248,-1874.3,0.00013971,2]
[335755643,1724478648259,-1874.3,0.00013971,2]
[335755644,1724478648269,-1874.3,0.00013971,2]
[335755645,1724478648280,-1874.3,0.00013971,2]
[335755646,1724478648290,-1874.3,0.00013971,2]
[335755647,1724478648300,-1874.3,0.00013971,2]
[335755648,1724478648310,-1874.3,0.00013971,2]
[335755649,1724478648320,-1874.3,0.00013971,2]
[335755650,1724478648330,-1874.3,0.00013971,2]
[335755651,1724478648339,-1874.35,0.00013971,2]
[335755652,1724478648349,-1513.12,0.00013971,2]
[335755653,1724478648359,-1513.12,0.00013971,2]
[335755654,1724478648369,-1513.12,0.00013971,2]
[335755655,1724478648378,-1513.12,0.00013971,2]
[335755656,1724478648387,-1513.12,0.00013971,2]
[335755657,1724478648397,-1513.12,0.00013971,2]
[335755658,1724478648406,-1513.12,0.00013971,2]
[335755659,1724478648416,-1513.208724,0.00013971,2]
[335755660,1724478648426,-843.24,0.00013971,2]
[335755661,1724478648435,-843.24,0.00013971,2]
[335755662,1724478648445,-843.24,0.00013971,2]
[335755663,1724478648456,-843.24,0.00013971,2]
[335755664,1724478648467,-843.24,0.00013971,2]
[335755665,1724478648476,-843.24,0.00013971,2]
[335755666,1724478648486,-843.24,0.00013971,2]
[335755667,1724478648496,-843.24,0.00013971,2]
[335755668,1724478648506,-843.24,0.00013971,2]
[335755669,1724478648517,-843.40454486,0.00013971,2]
[335755670,1724478648529,-198.403384,0.00013972,2]
[335755671,1724478648539,-198.403384,0.00013972,2]
[335755672,1724478648549,-198.403384,0.00013972,2]
[335755673,1724478648559,-198.403384,0.00013972,2]
[335755674,1724478648568,-198.403384,0.00013972,2]
[335755675,1724478648578,-198.403384,0.00013972,2]
[335755676,1724478648588,-151.187678,0.00013972,2]
[335755677,1724478648597,-510.20133375,0.00013972,2]
[335755678,1724478648607,-500.0,0.00013972,2]
[335755679,1724478648616,-500.0,0.00013972,2]
[335755680,1724478648626,-500.0,0.00013972,2]
[335755681,1724478648636,-500.0,0.00013972,2]
[335755682,1724478648645,-531.57,0.00013972,2]
[335755683,1724478648655,-500.0,0.00013972,2]
[335755684,1724478648665,-500.0,0.00013972,2]
[335755685,1724478648675,-1906.45,0.00013972,2]
[335755686,1724478648685,-500.0,0.00013972,2]
[335755687,1724478648694,-396.00590717,0.00013972,2]
[335755688,1724478648705,-500.0,0.00013972,2]
[335755689,1724478648715,-565.86,0.00013972,2]
[335755690,1724478648724,-500.0,0.00013972,2]
[335755691,1724478648734,-500.0,0.00013972,2]
[335755692,1724478648743,-1321.26,0.00013972,2]
[335755693,1724478648753,-500.0,0.00013972,2]
[335755694,1724478648762,-500.0,0.00013972,2]
[335755695,1724478648772,-500.0,0.00013972,2]
[335755696,1724478648781,-500.0,0.00013972,2]
[335755697,1724478648791,-500.0,0.00013972,2]
[335755698,1724478648801,-500.0,0.00013972,2]
[335755699,1724478648810,-1097.04,0.00013972,2]
[335755700,1724478648820,-229.58269642,0.00013972,2]
[335755701,1724478648830,-684.8,0.00013972,2]
[335755702,1724478648839,-500.0,0.00013972,2]
[335755703,1724478648848,-500.0,0.00013972,2]
[335755704,1724478648859,-500.0,0.00013972,2]
[335755705,1724478648870,-500.0,0.00013972,2]
[335755706,1724478648882,-1497.92,0.00013972,2]
[335755707,1724478648892,-500.0,0.00013972,2]
[335755708,1724478648901,-500.0,0.00013972,2]
[335755709,1724478648911,-500.0,0.00013972,2]
[335755710,1724478648920,-500.0,0.00013972,2]
[335755711,1724478648931,-500.0,0.00013972,2]
[335755712,1724478648944,-500.0,0.00013972,2]
[335755713,1724478648953,-500.0,0.00013972,2]
[335755714,1724478648963,-500.0,0.00013972,2]
[335755715,1724478648973,-500.0,0.00013972,2]
[335755716,1724478648983,-500.0,0.00013972,2]
[335755717,1724478648993,-500.0,0.00013972,2]
[335755718,1724478649003,-500.0,0.00013972,2]
[335755719,1724478649013,-515.52931762,0.00013972,2]
[335755720,1724478649023,-1248.94,0.00013972,2]
[335755721,1724478649034,-500.0,0.00013972,2]
[335755722,1724478649043,-500.0,0.00013972,2]
[335755723,1724478649054,-500.0,0.00013972,2]
[335755724,1724478649064,-506.71770182,0.00013972,2]
[335755725,1724478649075,-500.0,0.00013972,2]
[335755726,1724478649086,-631.39,0.00013972,2]
[335755727,1724478649096,-500.0,0.00013972,2]
[335755728,1724478649106,-500.0,0.00013972,2]
[335755729,1724478649117,-1133.54,0.00013972,2]
[335755730,1724478649126,-500.0,0.00013972,2]
[335755731,1724478649136,-500.0,0.00013972,2]
[335755732,1724478649145,-741.47,0.00013972,2]
[335755733,1724478649155,-500.0,0.00013972,2]
[335755734,1724478649166,-164.9585654,0.00013972,2]
[335755735,1724478649177,-500.0,0.00013972,2]
[335755736,1724478649187,-500.0,0.00013972,2]
[335755737,1724478649196,-1225.26,0.00013972,2]
[335755738,1724478649206,-500.0,0.00013972,2]
[335755739,1724478649217,-500.0,0.00013972,2]
[335755740,1724478649228,-503.35349515,0.00013972,2]
[335755741,1724478649238,-500.0,0.00013972,2]
[335755742,1724478649248,-503.36033015,0.00013972,2]
[335755743,1724478649259,-500.0,0.00013972,2]
[335755744,1724478649269,-501.64531367,0.00013972,2]
[335755745,1724478649279,-500.0,0.00013972,2]
[335755746,1724478649288,-526.08,0.00013972,2]
[335755747,1724478649298,-501.07,0.00013972,2]
[335755748,1724478649307,-500.0,0.00013972,2]
[335755749,1724478649317,-500.0,0.00013972,2]
[335755750,1724478649326,-1087.16,0.00013972,2]
[335755751,1724478649336,-983.16,0.00013972,2]
[335755752,1724478649345,-637.85,0.00013972,2]
[335755753,1724478649355,-924.47,0.00013972,2]
[335755754,1724478649364,-621.8,0.00013972,2]
[335755755,1724478649373,-500.0,0.00013972,2]
[335755756,1724478649383,-723.38,0.00013972,2]
[335755757,1724478649393,-327.219789,0.00013972,2]
[335755759,1724478649401,-505.35013108,0.00013972,2]
[335755761,1724478649410,-500.0,0.00013972,2]
[335755762,1724478649419,-327.219789,0.00013972,2]
[335755764,1724478649428,-500.0,0.00013972,2]
[335755766,1724478649438,-742.27,0.00013972,2]
[335755768,1724478649449,-2012.89,0.00013972,2]
[335755770,1724478649459,-546.17,0.00013972,2]
[335755771,1724478649469,-972.37,0.00013972,2]
[335755772,1724478649478,-1023.72,0.00013972,2]
[335755773,1724478649488,-151.0,0.00013972,2]
[335755774,1724478649497,-500.0,0.00013972,2]
[335755775,1724478649506,-782.21,0.00013972,2]
[335755776,1724478649516,-500.0,0.00013972,2]
[335755777,1724478649525,-151.0,0.00013972,2]
[335755778,1724478649534,-527.98,0.00013972,2]
[335755779,1724478649545,-500.0,0.00013972,2]
[335755780,1724478649555,-1121.39,0.00013972,2]
[335755781,1724478649565,-792.81,0.00013972,2]
[335755784,1724478649726,-2705.06,0.00013972,2]
[335755785,1724478649736,-500.0,0.00013972,2]
[335755786,1724478649748,-500.0,0.00013972,2]
[335755787,1724478649759,-625.77,0.00013972,2]
[335755788,1724478649769,-938.89,0.00013972,2]
[335755790,1724478649779,-500.0,0.00013972,2]
[335755791,1724478649788,-2879.67,0.00013972,2]
[335755792,1724478649799,-500.0,0.00013972,2]
[335755794,1724478649811,-309.318052,0.00013972,2]
[335755795,1724478649820,-500.0,0.00013972,2]
[335755796,1724478649830,-309.318052,0.00013972,2]
[335755797,1724478649841,-500.0,0.00013972,2]
[335755798,1724478649851,-500.0,0.00013972,2]
[335755800,1724478649861,-500.0,0.00013972,2]
[335755801,1724478649872,-839.41,0.00013972,2]
[335755802,1724478649884,-556.07,0.00013972,2]
[335755803,1724478649895,-724.91,0.00013972,2]
[335755804,1724478649905,-500.0,0.00013972,2]
[335755806,1724478649915,-728.51,0.00013972,2]
[335755807,1724478649925,-1296.71,0.00013972,2]
[335755808,1724478649936,-566.74,0.00013972,2]
[335755809,1724478649949,-1220.46,0.00013972,2]
[335755811,1724478649968,-500.0,0.00013972,2]
[335755812,1724478649978,-850.25,0.00013972,2]
[335755813,1724478649988,-500.0,0.00013972,2]
[335755815,1724478649997,-500.0,0.00013972,2]
[335755816,1724478650006,-520.07,0.00013972,2]
[335755817,1724478650016,-509.62,0.00013972,2]
[335755818,1724478650026,-500.0,0.00013972,2]
[335755820,1724478650035,-703.7,0.00013972,2]
[335755821,1724478650047,-500.0,0.00013972,2]
[335755822,1724478650058,-500.0,0.00013972,2]
[335755823,1724478650068,-684.23,0.00013972,2]
[335755824,1724478650077,-500.0,0.00013972,2]
[335755825,1724478650087,-878.06,0.00013972,2]
[335755826,1724478650097,-500.0,0.00013972,2]
[335755828,1724478650107,-500.0,0.00013972,2]
[335755829,1724478650117,-500.0,0.00013972,2]
[335755830,1724478650128,-563.62,0.00013972,2]
[335755831,1724478650138,-500.0,0.00013972,2]
[335755832,1724478650148,-557.72,0.00013972,2]
[335755833,1724478650158,-2752.5,0.00013972,2]
[335755834,1724478650167,-500.0,0.00013972,2]
[335755835,1724478650176,-500.0,0.00013972,2]
[335755836,1724478650186,-1248.38,0.00013972,2]
[335755837,1724478650196,-1339.76,0.00013972,2]
[335755838,1724478650205,-667.69,0.00013972,2]
[335755839,1724478650214,-500.0,0.00013972,2]
[335755840,1724478650224,-614.85,0.00013972,2]
[335755841,1724478650233,-151.0,0.00013972,2]
[335755842,1724478650242,-1581.72,0.00013972,2]
[335755843,1724478650252,-500.0,0.00013972,2]
[335755844,1724478650261,-651.59,0.00013972,2]
[335755845,1724478650271,-500.0,0.00013972,2]
[335755846,1724478650281,-500.0,0.00013972,2]
[335755847,1724478650291,-500.0,0.00013972,2]
[335755848,1724478650300,-1821.62,0.00013972,2]
[335755849,1724478650309,-500.0,0.00013972,2]
[335755850,1724478650319,-500.0,0.00013972,2]
[335755851,1724478650329,-1919.92,0.00013972,2]
[335755852,1724478650339,-2187.57,0.00013972,2]
[335755853,1724478650348,-1273.96,0.00013972,2]
[335755855,1724478650357,-500.0,0.00013972,2]
[335755856,1724478650366,-500.0,0.00013972,2]
[335755857,1724478650375,-500.0,0.00013972,2]
[335755858,1724478650385,-1102.31,0.00013972,2]
[335755859,1724478650394,-500.0,0.00013972,2]
[335755860,1724478650403,-884.35,0.00013972,2]
[335755861,1724478650413,-500.0,0.00013972,2]
[335755862,1724478650422,-500.0,0.00013972,2]
[335755863,1724478650431,-961.73,0.00013972,2]
[335755864,1724478650441,-500.0,0.00013972,2]
[335755865,1724478650450,-363.393875,0.00013972,2]
[335755866,1724478650460,-682.7,0.00013972,2]
[335755867,1724478650470,-500.0,0.00013972,2]
[335755868,1724478650480,-294.894676,0.00013972,2]
[335755869,1724478650489,-1187.93,0.00013972,2]
[335755870,1724478650499,-151.0,0.00013972,2]
[335755871,1724478650508,-363.393875,0.00013972,2]
[335755872,1724478650518,-500.0,0.00013972,2]
[335755873,1724478650527,-979.4,0.00013972,2]
[335755874,1724478650537,-1412.56,0.00013972,2]
[335755875,1724478650546,-151.0,0.00013972,2]
[335755876,1724478650556,-500.0,0.00013972,2]
[335755878,1724478650566,-260.866812,0.00013972,2]
[335755879,1724478650575,-829.9,0.00013972,2]
[335755880,1724478650585,-564.952526,0.00013972,2]
[335755881,1724478650595,-260.866812,0.00013972,2]
[335755882,1724478650604,-500.0,0.00013972,2]
[335755884,1724478650613,-500.0,0.00013972,2]
[335755885,1724478650623,-500.0,0.00013972,2]
[335755886,1724478650633,-564.952526,0.00013972,2]
[335755887,1724478650643,-654.26,0.00013972,2]
[335755888,1724478650652,-500.0,0.00013972,2]
[335755889,1724478650661,-500.0,0.00013972,2]
[335755890,1724478650670,-500.0,0.00013972,2]
[335755891,1724478650680,-1400.19,0.00013972,2]
[335755892,1724478650690,-590.4,0.00013972,2]
[335755893,1724478650699,-500.0,0.00013972,2]
[335755894,1724478650709,-500.0,0.00013972,2]
[335755895,1724478650719,-500.0,0.00013972,2]
[335755896,1724478650728,-1551.11,0.00013972,2]
[335755897,1724478650737,-867.0,0.00013972,2]
[335755898,1724478650746,-811.22,0.00013972,2]
[335755899,1724478650755,-500.0,0.00013972,2]
[335755900,1724478650765,-500.0,0.00013972,2]
[335755901,1724478650774,-500.0,0.00013972,2]
[335755902,1724478650783,-500.0,0.00013972,2]
[335755903,1724478650793,-1166.63,0.00013972,2]
[335755904,1724478650802,-500.0,0.00013972,2]
[335755906,1724478650811,-500.0,0.00013972,2]
[335755907,1724478650820,-500.0,0.00013972,2]
[335755908,1724478650829,-842.19,0.00013972,2]
[335755909,1724478650838,-500.0,0.00013972,2]
[335755910,1724478650847,-1528.2,0.00013972,2]
[335755911,1724478650857,-502.69690885,0.00013972,2]
[335755912,1724478650867,-500.0,0.00013972,2]
[335755913,1724478650880,-1038.51,0.00013972,2]
[335755914,1724478650889,-500.0,0.00013972,2]
[335755915,1724478650899,-500.0,0.00013972,2]
[335755916,1724478650908,-184.22,0.00013972,2]
[335755918,1724478650918,-500.0,0.00013972,2]
[335755919,1724478650927,-647.74,0.00013972,2]
[335755920,1724478650937,-704.81,0.00013972,2]
[335755921,1724478650946,-500.0,0.00013972,2]
[335755922,1724478650955,-500.0,0.00013972,2]
[335755923,1724478650965,-500.0,0.00013972,2]
[335755924,1724478650975,-1120.950112,0.00013972,2]
[335755925,1724478650984,-151.0,0.00013972,2]
[335755926,1724478650993,-500.0,0.00013972,2]
[335755927,1724478651003,-1120.950112,0.00013972,2]
[335755928,1724478651013,-500.0,0.00013972,2]
[335755929,1724478651022,-353.260474,0.00013972,2]
[335755930,1724478651031,-957.98,0.00013972,2]
[335755931,1724478651041,-500.0,0.00013972,2]
[335755932,1724478651050,-353.260474,0.00013972,2]
[335755933,1724478651060,-500.0,0.00013972,2]
[335755935,1724478651069,-1889.32,0.00013972,2]
[335755936,1724478651079,-151.0,0.00013972,2]
[335755937,1724478651088,-151.0,0.00013972,2]
[335755938,1724478651098,-790.14,0.00013972,2]
[335755939,1724478651108,-710.2,0.00013972,2]
[335755940,1724478651117,-598.85,0.00013972,2]
[335755941,1724478651127,-500.0,0.00013972,2]
[335755942,1724478651136,-500.0,0.00013972,2]
[335755943,1724478651147,-745.73,0.00013972,2]
[335755944,1724478651158,-500.0,0.00013972,2]
[335755945,1724478651167,-500.0,0.00013972,2]
[335755946,1724478651176,-500.0,0.00013972,2]
[335755947,1724478651186,-1171.79,0.00013972,2]
[335755948,1724478651195,-1617.77,0.00013972,2]
[335755949,1724478651205,-857.36,0.00013972,2]
[335755950,1724478651215,-500.0,0.00013972,2]
[335755951,1724478651224,-500.0,0.00013972,2]
[335755952,1724478651234,-502.33681626,0.00013972,2]
[335755953,1724478651243,-500.0,0.00013972,2]
[335755954,1724478651252,-701.67,0.00013972,2]
[335755955,1724478651262,-500.0,0.00013972,2]
[335755956,1724478651271,-500.0,0.00013972,2]
[335755957,1724478651280,-1428.6,0.00013972,2]
[335755958,1724478651289,-585.053371,0.00013972,2]
[335755959,1724478651297,-500.0,0.00013972,2]
[335755960,1724478651306,-500.0,0.00013972,2]
[335755961,1724478651315,-500.0,0.00013972,2]
[335755962,1724478651324,-567.1,0.00013972,2]
[335755963,1724478651333,-585.053371,0.00013972,2]
[335755964,1724478651342,-500.0,0.00013972,2]
[335755965,1724478651351,-500.0,0.00013972,2]
[335755966,1724478651360,-880.452442,0.00013972,2]
[335755967,1724478651369,-499.99680539,0.00013972,2]
[335755968,1724478651379,-500.0,0.00013972,2]
[335755970,1724478651387,-690.15,0.00013972,2]
[335755971,1724478651396,-880.452442,0.00013972,2]
[335755972,1724478651405,-963.21,0.00013972,2]
[335755973,1724478651414,-500.0,0.00013972,2]
[335755974,1724478651423,-884.71,0.00013972,2]
[335755975,1724478651433,-608.78,0.00013972,2]
[335755976,1724478651442,-500.0,0.00013972,2]
[335755978,1724478651451,-197.123887,0.00013972,2]
[335755979,1724478651461,-555.3,0.00013972,2]
[335755980,1724478651470,-1333.200783,0.00013972,2]
[335755981,1724478651479,-506.45,0.00013972,2]
[335755982,1724478651488,-1574.28,0.00013972,2]
[335755983,1724478651497,-197.123887,0.00013972,2]
[335755984,1724478651506,-964.52,0.00013972,2]
[335755985,1724478651515,-500.0,0.00013972,2]
[335755986,1724478651524,-500.0,0.00013972,2]
[335755987,1724478651533,-151.0,0.00013972,2]
[335755988,1724478651542,-1333.200783,0.00013972,2]
[335755989,1724478651551,-500.0,0.00013972,2]
[335755990,1724478651560,-953.55,0.00013972,2]
[335755991,1724478651570,-151.0,0.00013972,2]
[335755992,1724478651578,-500.0,0.00013972,2]
[335755993,1724478651587,-539.15,0.00013972,2]
[335755994,1724478651596,-1841.16,0.00013972,2]
[335755995,1724478651605,-608.48,0.00013972,2]
[335755996,1724478651614,-151.0,0.00013972,2]
[335755997,1724478651623,-500.0,0.00013972,2]
[335755998,1724478651632,-500.0,0.00013972,2]
[335755999,1724478651641,-500.0,0.00013972,2]
[335756000,1724478651650,-500.0,0.00013972,2]
[335756001,1724478651659,-554.91,0.00013972,2]
[335756002,1724478651668,-1188.03,0.00013972,2]
[335756003,1724478651676,-500.0,0.00013972,2]
[335756004,1724478651685,-500.0,0.00013972,2]
[335756005,1724478651694,-501.03401898,0.00013972,2]
[335756006,1724478651703,-500.0,0.00013972,2]
[335756007,1724478651712,-500.0,0.00013972,2]
[335756008,1724478651721,-500.0,0.00013972,2]
[335756009,1724478651730,-1105.69,0.00013972,2]
[335756010,1724478651739,-2080.43,0.00013972,2]
[335756011,1724478651748,-500.0,0.00013972,2]
[335756012,1724478651757,-500.0,0.00013972,2]
[335756013,1724478651767,-500.0,0.00013972,2]
[335756014,1724478651776,-614.17,0.00013972,2]
[335756015,1724478651785,-500.0,0.00013972,2]
[335756016,1724478651794,-707.9,0.00013972,2]
[335756017,1724478651803,-500.0,0.00013972,2]
[335756018,1724478651812,-772.735871,0.00013972,2]
[335756019,1724478651821,-500.0,0.00013972,2]
[335756020,1724478651830,-758.12,0.00013972,2]
[335756021,1724478651839,-500.0,0.00013972,2]
[335756022,1724478651848,-500.0,0.00013972,2]
[335756023,1724478651856,-772.735871,0.00013972,2]
[335756024,1724478651865,-500.0,0.00013972,2]
[335756025,1724478651877,-150.0,0.00013972,2]
[335756026,1724478651888,-3424.19,0.00013972,2]
[335756027,1724478651897,-500.0,0.00013972,2]
[335756028,1724478651906,-500.0,0.00013972,2]
[335756029,1724478651916,-500.0,0.00013972,2]
[335756030,1724478651925,-500.0,0.00013972,2]
[335756031,1724478651934,-500.0,0.00013972,2]
[335756032,1724478651943,-500.0,0.00013972,2]
[335756033,1724478651953,-500.0,0.00013972,2]
[335756034,1724478651963,-500.0,0.00013972,2]
[335756035,1724478651972,-500.0,0.00013972,2]
[335756036,1724478651981,-1926.24,0.00013972,2]
[335756037,1724478651989,-6310.03,0.00013972,2]
[335756038,1724478651999,-865.07,0.00013972,2]
[335756039,1724478652008,-2293.22,0.00013972,2]
[335756040,1724478652017,-1290.075567,0.00013972,2]
[335756041,1724478652027,-907.7,0.00013972,2]
[335756042,1724478652036,-151.0,0.00013972,2]
[335756043,1724478652045,-500.0,0.00013972,2]
[335756045,1724478652053,-1290.075567,0.00013972,2]
[335756046,1724478652062,-500.0,0.00013972,2]
[335756047,1724478652072,-151.0,0.00013972,2]
[335756048,1724478652081,-500.0,0.00013972,2]
[335756049,1724478652089,-500.0,0.00013972,2]
[335756050,1724478652098,-780.4,0.00013972,2]
[335756051,1724478652107,-1297.68,0.00013972,2]
[335756052,1724478652117,-500.0,0.00013972,2]
[335756053,1724478652126,-500.0,0.00013972,2]
[335756054,1724478652134,-662.09,0.00013972,2]
[335756055,1724478652143,-500.0,0.00013972,2]
[335756056,1724478652152,-518.46,0.00013972,2]
[335756057,1724478652162,-500.0,0.00013972,2]
[335756058,1724478652171,-500.0,0.00013972,2]
[335756059,1724478652180,-500.0,0.00013972,2]
[335756060,1724478652190,-3557.48,0.00013972,2]
[335756061,1724478652201,-631.11,0.00013972,2]
[335756062,1724478652210,-3474.97,0.00013972,2]
[335756063,1724478652220,-500.0,0.00013972,2]
[335756064,1724478652229,-566.76,0.00013972,2]
[335756065,1724478652368,-500.0,0.00013972,2]
[335756066,1724478652391,-713.98,0.00013972,2]
[335756067,1724478652401,-500.0,0.00013972,2]
[335756068,1724478652410,-708.01,0.00013972,2]
[335756069,1724478652419,-151.0,0.00013972,2]
[335756070,1724478652429,-628.22,0.00013972,2]
[335756071,1724478652438,-869.41,0.00013972,2]
[335756072,1724478652448,-261.313277,0.00013972,2]
[335756073,1724478652458,-500.0,0.00013972,2]
[335756075,1724478652467,-261.313277,0.00013972,2]
[335756076,1724478652476,-852.42,0.00013972,2]
[335756077,1724478652487,-500.0,0.00013972,2]
[335756078,1724478652497,-821.3,0.00013972,2]
[335756079,1724478652506,-703.92,0.00013972,2]
[335756080,1724478652517,-519.01160448,0.00013972,2]
[335756081,1724478652527,-2145.4,0.00013972,2]
[335756082,1724478652537,-1116.74,0.00013972,2]
[335756083,1724478652547,-933.27,0.00013972,2]
[335756084,1724478652557,-3413.06,0.00013972,2]
[335756085,1724478652568,-9124.38,0.00013972,2]
[335756086,1724478652578,-981.48,0.00013972,2]
[335756087,1724478652589,-500.0,0.00013972,2]
[335756088,1724478652599,-724.02,0.00013972,2]
[335756089,1724478652609,-5965.28,0.00013972,2]
[335756090,1724478652620,-679.823101,0.00013972,2]
[335756091,1724478652631,-8249.59,0.00013972,2]
[335756093,1724478652641,-500.0,0.00013972,2]
[335756094,1724478652651,-500.0,0.00013972,2]
[335756095,1724478652662,-500.0,0.00013972,2]
[335756096,1724478652671,-599.44,0.00013972,2]
[335756097,1724478652681,-500.0,0.00013972,2]
[335756098,1724478652690,-1010.64,0.00013972,2]
[335756099,1724478652701,-609.1,0.00013972,2]
[335756100,1724478652711,-679.823101,0.00013972,2]